fUST/lending_fUST_20250727
["ID","MTS","AMOUNT","RATE_DAILY","PERIOD"]
[375309325,1753623040871,-460.0,0.00019452,2]
[375309327,1753623040881,-3055.01,0.00019452,2]
[375309329,1753623040890,-460.0,0.00019452,2]
[375309331,1753623040900,-191.6,0.00019452,2]
[375309333,1753623040909,-460.0,0.00019452,2]
[375309335,1753623040919,-460.0,0.00019452,2]
[375309337,1753623040928,-460.0,0.00019452,2]
[375309339,1753623040939,-460.0,0.00019452,2]
[375309341,1753623040949,-460.0,0.00019452,2]
[375309343,1753623040958,-460.0,0.00019452,2]
[375309345,1753623040968,-460.0,0.00019452,2]
[375309347,1753623040977,-881.47,0.00019452,2]
[375309349,1753623040987,-460.0,0.00019452,2]
[375309351,1753623040996,-460.0,0.00019452,2]
[375309353,1753623041005,-551.68,0.00019452,2]
[375309355,1753623041016,-460.0,0.00019452,2]
[375309357,1753623041026,-529.01189253,0.00019452,2]
[375309359,1753623041035,-474.83873854,0.00019452,2]
[375309361,1753623041045,-680.2,0.00019452,2]
[375309363,1753623041054,-460.0,0.00019452,2]
[375309365,1753623041064,-460.0,0.00019452,2]
[375309367,1753623041073,-460.0,0.00019452,2]
[375309369,1753623041083,-460.0,0.00019452,2]
[375309371,1753623041092,-702.74,0.00019452,2]
[375309373,1753623041102,-756.66,0.00019452,2]
[375309375,1753623041112,-698.98,0.00019452,2]
[375309377,1753623041122,-460.0,0.00019452,2]
[375309379,1753623041132,-476.31,0.00019452,2]
[375309381,1753623041141,-460.0,0.00019452,2]
[375309383,1753623041151,-460.0,0.00019452,2]
[375309385,1753623041160,-460.0,0.00019452,2]
[375309387,1753623041169,-460.0,0.00019452,2]
[375309389,1753623041179,-460.0,0.00019452,2]
[375309391,1753623041188,-835.27,0.00019452,2]
[375309393,1753623041198,-262.04817577,0.00019452,2]
[375309395,1753623041208,-460.0,0.00019452,2]
[375309397,1753623041217,-512.65,0.00019452,2]
[375309399,1753623041227,-460.0,0.00019452,2]
[375309401,1753623041237,-460.0,0.00019452,2]
[375309403,1753623041246,-460.0,0.00019452,2]
[375309405,1753623041256,-460.0,0.00019452,2]
[375309407,1753623041265,-460.0,0.00019452,2]
[375309409,1753623041275,-757.32,0.00019452,2]
[375309411,1753623041286,-460.0,0.00019452,2]
[375309413,1753623041298,-460.0,0.00019452,2]
[375309415,1753623041308,-460.0,0.00019452,2]
[375309417,1753623041319,-460.0,0.00019452,2]
[375309419,1753623041328,-460.0,0.00019452,2]
[375309421,1753623041338,-1484.05,0.00019452,2]
[375309423,1753623041348,-460.0,0.00019452,2]
[375309425,1753623041358,-460.0,0.00019452,2]
[375309427,1753623041370,-574.97723689,0.00019473,2]
[375309429,1753623041380,-460.0,0.00019725,2]
[375309431,1753623041390,-460.0,0.00019725,2]
[375309433,1753623041399,-856.62,0.00019725,2]
[375309435,1753623041409,-460.0,0.00019725,2]
[375309437,1753623041418,-460.0,0.00019725,2]
[375309439,1753623041428,-460.0,0.00019726,2]
[375309441,1753623041438,-460.0,0.00019726,2]
[375309443,1753623041448,-460.0,0.00019726,2]
[375309445,1753623041457,-215.92478924,0.00019726,2]
[375309447,1753623041466,-460.4582411,0.00019726,2]
[375309449,1753623041476,-460.0,0.00019726,2]
[375309451,1753623041485,-466.15288213,0.00019726,2]
[375309453,1753623041494,-460.0,0.00019726,2]
[375309455,1753623041504,-479.67315614,0.00019726,2]
[375309457,1753623041513,-460.0,0.00019726,2]
[375309459,1753623041523,-460.0,0.00019726,2]
[375309461,1753623041533,-460.0,0.00019726,2]
[375309463,1753623041543,-460.0,0.00019726,2]
[375309465,1753623041552,-460.0,0.00019726,2]
[375309467,1753623041562,-460.0,0.00019726,2]
[375309469,1753623041571,-460.0,0.00019726,2]
[375309471,1753623041581,-460.0,0.00019726,2]
[375309473,1753623041590,-460.0,0.00019726,2]
[375309475,1753623041600,-460.0,0.00019726,2]
[375309477,1753623041609,-460.0,0.00019726,2]
[375309479,1753623041618,-1629.45,0.00019726,2]
[375309481,1753623041628,-460.0,0.00019726,2]
[375309483,1753623041637,-460.0,0.00019726,2]
[375309485,1753623041647,-466.19812012,0.00019726,2]
[375309487,1753623041656,-460.0,0.00019726,2]
[375309489,1753623041665,-460.0,0.00019726,2]
[375309491,1753623041675,-543.93,0.00019726,2]
[375309493,1753623041685,-460.0,0.00019726,2]
[375309495,1753623041695,-460.0,0.00019726,2]
[375309497,1753623041704,-460.0,0.00019726,2]
[375309499,1753623041713,-460.0,0.00019726,2]
[375309501,1753623041722,-460.0,0.00019726,2]
[375309503,1753623041732,-460.0,0.00019726,2]
[375309505,1753623041741,-460.0,0.00019726,2]
[375309507,1753623041750,-460.0,0.00019726,2]
[375309509,1753623041759,-460.0,0.00019726,2]
[375309511,1753623041769,-460.0,0.00019726,2]
[375309513,1753623041778,-460.0,0.00019726,2]
[375309515,1753623041788,-460.0,0.00019726,2]
[375309517,1753623041797,-460.0,0.00019726,2]
[375309519,1753623041806,-460.0,0.00019726,2]
[375309521,1753623041815,-460.0,0.00019726,2]
[375309523,1753623041825,-598.47,0.00019726,2]
[375309525,1753623041835,-460.0,0.00019726,2]
[375309527,1753623041844,-460.0,0.00019726,2]
[375309529,1753623041853,-460.0,0.00019726,2]
[375309531,1753623041863,-460.0,0.00019726,2]
[375309533,1753623041872,-460.0,0.00019726,2]
[375309535,1753623041881,-460.0,0.00019726,2]
[375309537,1753623041892,-460.0,0.00019726,2]
[375309539,1753623041902,-249.19275384,0.00019726,2]
[375309541,1753623041911,-460.0,0.00019726,2]
[375309543,1753623041921,-209.72,0.00019726,2]
[375309545,1753623041930,-460.0,0.00019726,2]
[375309547,1753623041940,-460.0,0.00019726,2]
[375309549,1753623041949,-460.0,0.00019726,2]
[375309551,1753623041958,-3055.01,0.00019726,2]
[375309553,1753623041967,-460.0,0.00019726,2]
[375309555,1753623041977,-460.0,0.00019726,2]
[375309557,1753623041987,-460.0,0.00019726,2]
[375309559,1753623041995,-460.0,0.00019726,2]
[375309561,1753623042005,-460.0,0.00019726,2]
[375309563,1753623042015,-460.0,0.00019726,2]
[375309565,1753623042023,-460.0,0.00019726,2]
[375309567,1753623042033,-460.0,0.00019726,2]
[375309569,1753623042042,-881.47,0.00019726,2]
[375309571,1753623042051,-460.0,0.00019726,2]
[375309573,1753623042060,-202.56,0.00019726,2]
[375309575,1753623042070,-551.68,0.00019726,2]
[375309577,1753623042079,-680.2,0.00019726,2]
[375309579,1753623042088,-460.0,0.00019726,2]
[375309581,1753623042097,-460.0,0.00019726,2]
[375309583,1753623042106,-460.0,0.00019726,2]
[375309585,1753623042115,-702.74,0.00019726,2]
[375309587,1753623042125,-756.66,0.00019726,2]
[375309589,1753623042134,-698.98,0.00019726,2]
[375309591,1753623042143,-460.0,0.00019726,2]
[375309593,1753623042153,-460.0,0.00019726,2]
[375309596,1753623042164,-460.0,0.00019726,2]
[375309597,1753623042173,-460.0,0.00019726,2]
[375309599,1753623042183,-460.0,0.00019726,2]
[375309602,1753623042192,-460.0,0.00019726,2]
[375309604,1753623042202,-835.27,0.00019726,2]
[375309606,1753623042211,-460.0,0.00019726,2]
[375309608,1753623042220,-512.65,0.00019726,2]
[375309609,1753623042230,-460.0,0.00019726,2]
[375309611,1753623042239,-584.99,0.00019726,2]
[375309613,1753623042248,-460.0,0.00019726,2]
[375309615,1753623042258,-460.0,0.00019726,2]
[375309617,1753623042267,-757.32,0.00019726,2]
[375309619,1753623042277,-460.0,0.00019726,2]
[375309621,1753623042286,-460.0,0.00019726,2]
[375309623,1753623042303,-460.0,0.00019726,2]
[375309625,1753623042312,-460.0,0.00019726,2]
[375309627,1753623042322,-1484.05,0.00019726,2]
[375309629,1753623042331,-460.0,0.00019726,2]
[375309631,1753623042342,-460.0,0.00019726,2]
[375309633,1753623042351,-150.0,0.00019742,2]
[375309635,1753623042360,-851.70049083,0.000199,2]
[375309637,1753623042370,-460.0,0.00019999,2]
[375309639,1753623042380,-856.62,0.00019999,2]
[375309642,1753623042389,-460.0,0.00019999,2]
[375309644,1753623042399,-460.0,0.00019999,2]
[375309646,1753623042409,-609.59617626,0.00019999,2]
[375309648,1753623042418,-500.0,0.00019999,2]
[375309650,1753623042427,-500.0,0.00019999,2]
[375309652,1753623042436,-500.0,0.00019999,2]
[375309654,1753623042446,-500.0,0.00019999,2]
[375309656,1753623042455,-500.0,0.00019999,2]
[375309658,1753623042465,-500.0,0.00019999,2]
[375309659,1753623042474,-500.0,0.00019999,2]
[375309662,1753623042484,-500.0,0.00019999,2]
[375309664,1753623042493,-500.0,0.00019999,2]
[375309665,1753623042502,-500.0,0.00019999,2]
[375309668,1753623042511,-460.0,0.0002,2]
[375309669,1753623042521,-460.0,0.0002,2]
[375309672,1753623042530,-460.0,0.0002,2]
[375309673,1753623042540,-460.0,0.0002,2]
[375309675,1753623042549,-460.0,0.0002,2]
[375309677,1753623042558,-460.0,0.0002,2]
[375309679,1753623042567,-460.0,0.0002,2]
[375309682,1753623042577,-460.0,0.0002,2]
[375309683,1753623042587,-460.0,0.0002,2]
[375309685,1753623042596,-460.0,0.0002,2]
[375309687,1753623042605,-460.0,0.0002,2]
[375309689,1753623042615,-460.0,0.0002,2]
[375309691,1753623042624,-460.0,0.0002,2]
[375309693,1753623042634,-460.0,0.0002,2]
[375309695,1753623042643,-1629.45,0.0002,2]
[375309697,1753623042653,-460.0,0.0002,2]
[375309699,1753623042662,-460.0,0.0002,2]
[375309701,1753623042671,-460.0,0.0002,2]
[375309703,1753623042680,-543.93,0.0002,2]
[375309705,1753623042689,-460.0,0.0002,2]
[375309707,1753623042699,-460.0,0.0002,2]
[375309709,1753623042709,-460.0,0.0002,2]
[375309711,1753623042718,-460.0,0.0002,2]
[375309714,1753623042727,-460.0,0.0002,2]
[375309716,1753623042737,-460.0,0.0002,2]
[375309718,1753623042746,-460.0,0.0002,2]
[375309720,1753623042756,-359.17,0.0002,2]
[375309722,1753623042765,-460.0,0.0002,2]
[375309723,1753623042775,-460.0,0.0002,2]
[375309726,1753623042784,-460.0,0.0002,2]
[375309728,1753623042793,-460.0,0.0002,2]
[375309729,1753623042803,-460.0,0.0002,2]
[375309731,1753623042812,-460.0,0.0002,2]
[375309733,1753623042821,-460.0,0.0002,2]
[375309735,1753623042830,-598.47,0.0002,2]
[375309737,1753623042839,-173.17489349,0.0002,2]
[375309739,1753623042849,-460.0,0.0002,2]
[375309741,1753623042858,-460.0,0.0002,2]
[375309743,1753623042867,-525.32,0.0002,2]
[375309745,1753623042876,-460.0,0.0002,2]
[375309747,1753623042886,-460.0,0.0002,2]
[375309749,1753623042895,-460.0,0.0002,2]
[375309751,1753623042904,-460.0,0.0002,2]
[375309753,1753623042913,-460.0,0.0002,2]
[375309755,1753623042922,-460.0,0.0002,2]
[375309757,1753623042931,-412.66,0.0002,2]
[375309759,1753623042941,-3055.01,0.0002,2]
[375309762,1753623042951,-460.0,0.0002,2]
[375309764,1753623042960,-460.0,0.0002,2]
[375309766,1753623042970,-460.0,0.0002,2]
[375309768,1753623042979,-460.0,0.0002,2]
[375309770,1753623042989,-460.0,0.0002,2]
[375309772,1753623042999,-460.0,0.0002,2]
[375309774,1753623043008,-460.0,0.0002,2]
[375309776,1753623043017,-460.0,0.0002,2]
[375309778,1753623043027,-881.47,0.0002,2]
[375309780,1753623043036,-460.0,0.0002,2]
[375309782,1753623043045,-551.68,0.0002,2]
[375309785,1753623043055,-680.2,0.0002,2]
[375309787,1753623043064,-460.0,0.0002,2]
[375309789,1753623043073,-460.0,0.0002,2]
[375309791,1753623043082,-702.74,0.0002,2]
[375309793,1753623043092,-756.66,0.0002,2]
[375309795,1753623043101,-698.98,0.0002,2]
[375309797,1753623043111,-460.0,0.0002,2]
[375309799,1753623043120,-460.0,0.0002,2]
[375309801,1753623043129,-460.0,0.0002,2]
[375309803,1753623043139,-460.0,0.0002,2]
[375309805,1753623043149,-460.0,0.0002,2]
[375309807,1753623043158,-460.0,0.0002,2]
[375309809,1753623043167,-835.27,0.0002,2]
[375309811,1753623043177,-460.0,0.0002,2]
[375309813,1753623043186,-512.65,0.0002,2]
[375309815,1753623043196,-460.0,0.0002,2]
[375309817,1753623043205,-460.0,0.0002,2]
[375309819,1753623043215,-460.0,0.0002,2]
[375309821,1753623043225,-757.32,0.0002,2]
[375309823,1753623043234,-460.0,0.0002,2]
[375309825,1753623043243,-300.59397074,0.0002,2]
[375309827,1753623043253,-460.0,0.0002,2]
[375309829,1753623043262,-460.0,0.0002,2]
[375309831,1753623043271,-1484.05,0.0002,2]
[375309833,1753623043280,-460.0,0.0002,2]
[375309835,1753623043291,-851.70049063,0.00020072,2]
[375309837,1753623043301,-431.032399,0.00020187,2]
[375309839,1753623043311,-851.70049063,0.00020245,2]
[375309841,1753623043320,-460.0,0.00020273,2]
[375309843,1753623043329,-460.0,0.00020273,2]
[375309845,1753623043341,-460.0,0.00020273,2]
[375309847,1753623043351,-466.98506485,0.00020273,2]
[375309849,1753623043360,-460.0,0.00020273,2]
[375309851,1753623043372,-460.0,0.00020273,2]
[375309853,1753623043382,-460.0,0.00020273,2]
[375309855,1753623043392,-460.0,0.00020273,2]
[375309857,1753623043401,-460.0,0.00020273,2]
[375309859,1753623043411,-460.0,0.00020273,2]
[375309860,1753623043420,-460.0,0.00020273,2]
[375309861,1753623043430,-460.0,0.00020273,2]
[375309862,1753623043440,-460.0,0.00020273,2]
[375309863,1753623043449,-1629.45,0.00020273,2]
[375309865,1753623043459,-460.0,0.00020273,2]
[375309866,1753623043468,-552.98370538,0.00020273,2]
[375309867,1753623043478,-460.0,0.00020273,2]
[375309868,1753623043487,-543.93,0.00020273,2]
[375309869,1753623043497,-466.74365477,0.00020273,2]
[375309870,1753623043506,-460.0,0.00020273,2]
[375309871,1753623043516,-460.0,0.00020273,2]
[375309872,1753623043525,-460.0,0.00020273,2]
[375309873,1753623043535,-544.17,0.00020273,2]
[375309874,1753623043545,-460.0,0.00020273,2]
[375309875,1753623043555,-460.0,0.00020273,2]
[375309876,1753623043564,-460.0,0.00020273,2]
[375309877,1753623043573,-460.0,0.00020273,2]
[375309878,1753623043583,-460.0,0.00020273,2]
[375309879,1753623043593,-460.0,0.00020273,2]
[375309880,1753623043603,-460.0,0.00020273,2]
[375309881,1753623043612,-282.8449,0.00020273,2]
[375309883,1753623043622,-460.0,0.00020273,2]
[375309885,1753623043632,-598.47,0.00020273,2]
[375309886,1753623043641,-164.20093309,0.00020273,2]
[375309887,1753623043651,-460.0,0.00020273,2]
[375309888,1753623043660,-460.0,0.00020273,2]
[375309890,1753623043670,-460.0,0.00020273,2]
[375309891,1753623043680,-227.9,0.00020273,2]
[375309892,1753623043691,-460.0,0.00020273,2]
[375309894,1753623043701,-460.0,0.00020273,2]
[375309896,1753623043711,-460.0,0.00020273,2]
[375309898,1753623043720,-3055.01,0.00020273,2]
[375309900,1753623043730,-460.0,0.00020273,2]
[375309902,1753623043739,-460.0,0.00020273,2]
[375309904,1753623043749,-460.0,0.00020273,2]
[375309906,1753623043758,-460.0,0.00020273,2]
[375309908,1753623043768,-460.0,0.00020273,2]
[375309910,1753623043777,-881.47,0.00020273,2]
[375309912,1753623043787,-545.4,0.00020273,2]
[375309914,1753623043796,-856.62,0.00020273,2]
[375309916,1753623043806,-551.68,0.00020273,2]
[375309918,1753623043816,-680.2,0.00020273,2]
[375309920,1753623043825,-460.0,0.00020273,2]
[375309922,1753623043834,-460.0,0.00020273,2]
[375309924,1753623043844,-702.74,0.00020273,2]
[375309926,1753623043853,-756.66,0.00020273,2]
[375309928,1753623043862,-460.0,0.00020273,2]
[375309930,1753623043872,-698.98,0.00020273,2]
[375309932,1753623043881,-460.0,0.00020273,2]
[375309934,1753623043890,-460.0,0.00020273,2]
[375309936,1753623043900,-460.0,0.00020273,2]
[375309938,1753623043910,-460.0,0.00020273,2]
[375309953,1753623044045,-460.0,0.00020273,2]
[375309955,1753623044055,-835.27,0.00020273,2]
[375309957,1753623044065,-460.0,0.00020273,2]
[375309959,1753623044075,-512.65,0.00020273,2]
[375309961,1753623044084,-460.0,0.00020273,2]
[375309963,1753623044094,-460.0,0.00020273,2]
[375309965,1753623044104,-460.0,0.00020273,2]
[375309967,1753623044113,-376.65048214,0.00020273,2]
[375309969,1753623044123,-757.32,0.00020273,2]
[375309971,1753623044132,-460.0,0.00020273,2]
[375309973,1753623044142,-460.0,0.00020273,2]
[375309975,1753623044152,-460.0,0.00020273,2]
[375309977,1753623044162,-1484.05,0.00020273,2]
[375309979,1753623044171,-460.0,0.00020273,2]
[375309981,1753623044181,-460.0,0.00020273,2]
[375309983,1753623044190,-851.70049063,0.00020417,3]
[375309985,1753623044200,-160.0,0.00020423,2]
[375309987,1753623044209,-501.71421739,0.00020525,2]
[375309989,1753623044219,-460.0,0.00020547,2]
[375309991,1753623044228,-460.0,0.00020547,2]
[375309993,1753623044238,-460.0,0.00020547,2]
[375309995,1753623044247,-460.0,0.00020547,2]
[375309997,1753623044256,-460.0,0.00020547,2]
[375309999,1753623044266,-460.0,0.00020547,2]
[375310001,1753623044276,-460.0,0.00020547,2]
[375310003,1753623044286,-460.0,0.00020547,2]
[375310005,1753623044299,-460.0,0.00020547,2]
[375310008,1753623044308,-460.0,0.00020547,2]
[375310009,1753623044318,-460.0,0.00020547,2]
[375310011,1753623044327,-1629.45,0.00020547,2]
[375310013,1753623044338,-460.0,0.00020547,2]
[375310015,1753623044347,-460.0,0.00020547,2]
[375310017,1753623044358,-543.93,0.00020547,2]
[375310019,1753623044369,-369.3867747,0.00020547,2]
[375310021,1753623044378,-460.0,0.00020547,2]
[375310023,1753623044388,-460.0,0.00020547,2]
[375310025,1753623044398,-460.0,0.00020547,2]
[375310027,1753623044407,-460.0,0.00020547,2]
[375310029,1753623044417,-460.0,0.00020547,2]
[375310031,1753623044426,-460.0,0.00020547,2]
[375310033,1753623044435,-220.3,0.00020547,2]
[375310035,1753623044446,-474.0,0.00020547,2]
[375310037,1753623044460,-460.0,0.00020547,2]
[375310039,1753623044475,-460.0,0.00020547,2]
[375310041,1753623044486,-598.47,0.00020547,2]
[375310043,1753623044497,-460.0,0.00020547,2]
[375310046,1753623044507,-460.0,0.00020547,2]
[375310048,1753623044517,-460.0,0.00020547,2]
[375310049,1753623044527,-460.0,0.00020547,2]
[375310051,1753623044536,-460.0,0.00020547,2]
[375310054,1753623044546,-460.0,0.00020547,2]
[375310056,1753623044556,-3055.01,0.00020547,2]
[375310058,1753623044566,-460.0,0.00020547,2]
[375310060,1753623044575,-460.0,0.00020547,2]
[375310062,1753623044585,-460.0,0.00020547,2]
[375310064,1753623044594,-881.47,0.00020547,2]
[375310066,1753623044604,-856.62,0.00020547,2]
[375310068,1753623044614,-551.68,0.00020547,2]
[375310070,1753623044624,-680.2,0.00020547,2]
[375310072,1753623044633,-482.69816767,0.00020547,2]
[375310074,1753623044643,-460.0,0.00020547,2]
[375310076,1753623044652,-702.74,0.00020547,2]
[375310077,1753623044662,-756.66,0.00020547,2]
[375310080,1753623044672,-460.0,0.00020547,2]
[375310081,1753623044682,-698.98,0.00020547,2]
[375310083,1753623044692,-460.0,0.00020547,2]
[375310085,1753623044702,-460.0,0.00020547,2]
[375310087,1753623044712,-460.0,0.00020547,2]
[375310089,1753623044722,-460.0,0.00020547,2]
[375310091,1753623044732,-460.0,0.00020547,2]
[375310094,1753623044743,-835.27,0.00020547,2]
[375310095,1753623044753,-512.65,0.00020547,2]
[375310097,1753623044763,-460.0,0.00020547,2]
[375310099,1753623044773,-460.0,0.00020547,2]
[375310101,1753623044783,-460.0,0.00020547,2]
[375310103,1753623044794,-757.32,0.00020547,2]
[375310105,1753623044804,-460.0,0.00020547,2]
[375310107,1753623044814,-460.0,0.00020547,2]
[375310110,1753623044823,-464.34018882,0.00020547,2]
[375310112,1753623044833,-1484.05,0.00020547,2]
[375310113,1753623044843,-460.0,0.00020547,2]
[375310116,1753623044853,-851.70049063,0.0002059,3]
[375310117,1753623044863,-150.0,0.00020682,2]
[375310120,1753623044872,-851.70049063,0.00020762,3]
[375310122,1753623044882,-420.0,0.00020792,2]
[375310124,1753623044892,-460.0,0.00020821,2]
[375310126,1753623044902,-460.0,0.00020821,2]
[375310127,1753623044912,-460.0,0.00020821,2]
[375310129,1753623044922,-460.0,0.00020821,2]
[375310132,1753623044933,-460.0,0.00020821,2]
[375310134,1753623044943,-269.46138922,0.00020821,2]
[375310136,1753623044952,-460.0,0.00020821,2]
[375310138,1753623044962,-268.1817144,0.00020821,2]
[375310139,1753623044972,-1629.45,0.00020821,2]
[375310142,1753623044982,-460.0,0.00020821,2]
[375310144,1753623044992,-198.89,0.00020821,2]
[375310146,1753623045002,-543.93,0.00020821,2]
[375310148,1753623045012,-313.86264947,0.00020821,2]
[375310150,1753623045022,-460.0,0.00020821,2]
[375310151,1753623045031,-460.0,0.00020821,2]
[375310154,1753623045041,-460.0,0.00020821,2]
[375310156,1753623045051,-460.0,0.00020821,2]
[375310158,1753623045061,-460.0,0.00020821,2]
[375310160,1753623045072,-460.0,0.00020821,2]
[375310162,1753623045082,-598.47,0.00020821,2]
[375310163,1753623045091,-460.0,0.00020821,2]
[375310165,1753623045101,-460.0,0.00020821,2]
[375310167,1753623045110,-383.55318024,0.00020821,2]
[375310169,1753623045120,-460.0,0.00020821,2]
[375310171,1753623045129,-460.0,0.00020821,2]
[375310173,1753623045140,-460.0,0.00020821,2]
[375310175,1753623045149,-3055.01,0.00020821,2]
[375310178,1753623045159,-460.0,0.00020821,2]
[375310180,1753623045169,-274.0,0.00020821,2]
[375310181,1753623045179,-460.0,0.00020821,2]
[375310184,1753623045189,-881.47,0.00020821,2]
[375310186,1753623045200,-856.62,0.00020821,2]
[375310188,1753623045209,-551.68,0.00020821,2]
[375310190,1753623045219,-680.2,0.00020821,2]
[375310192,1753623045229,-460.0,0.00020821,2]
[375310193,1753623045238,-702.74,0.00020821,2]
[375310195,1753623045248,-756.66,0.00020821,2]
[375310198,1753623045258,-460.0,0.00020821,2]
[375310200,1753623045268,-698.98,0.00020821,2]
[375310202,1753623045278,-460.0,0.00020821,2]
[375310204,1753623045294,-460.0,0.00020821,2]
[375310206,1753623045313,-460.0,0.00020821,2]
[375310208,1753623045333,-460.0,0.00020821,2]
[375310209,1753623045351,-460.0,0.00020821,2]
[375310211,1753623045362,-835.27,0.00020821,2]
[375310213,1753623045372,-512.65,0.00020821,2]
[375310216,1753623045382,-460.0,0.00020821,2]
[375310219,1753623045403,-460.0,0.00020821,2]
[375310221,1753623045413,-460.0,0.00020821,2]
[375310223,1753623045423,-757.32,0.00020821,2]
[375310225,1753623045433,-460.0,0.00020821,2]
[375310227,1753623045443,-460.0,0.00020821,2]
[375310229,1753623045453,-1484.05,0.00020821,2]
[375310231,1753623045463,-460.0,0.00020821,2]
[375310233,1753623045473,-851.70049063,0.00020934,4]
[375310235,1753623045483,-260.0,0.00020971,2]
[375310237,1753623045493,-150.999999,0.00021,2]
[375310239,1753623045503,-460.0,0.00021095,2]
[375310241,1753623045513,-460.0,0.00021095,2]
[375310243,1753623045523,-460.0,0.00021095,2]
[375310245,1753623045532,-460.0,0.00021095,2]
[375310247,1753623045543,-460.0,0.00021095,2]
[375310249,1753623045553,-1629.45,0.00021095,2]
[375310251,1753623045563,-460.0,0.00021095,2]
[375310253,1753623045573,-543.93,0.00021095,2]
[375310255,1753623045583,-460.0,0.00021095,2]
[375310257,1753623045594,-460.0,0.00021095,2]
[375310259,1753623045604,-460.0,0.00021095,2]
[375310261,1753623045613,-460.0,0.00021095,2]
[375310263,1753623045623,-598.47,0.00021095,2]
[375310265,1753623045633,-460.0,0.00021095,2]
[375310267,1753623045643,-460.0,0.00021095,2]
[375310269,1753623045653,-460.0,0.00021095,2]
[375310271,1753623045663,-460.0,0.00021095,2]
[375310273,1753623045673,-3055.01,0.00021095,2]
[375310275,1753623045682,-460.0,0.00021095,2]
[375310277,1753623045692,-881.47,0.00021095,2]
[375310279,1753623045701,-856.62,0.00021095,2]
[375310281,1753623045711,-551.68,0.00021095,2]
[375310283,1753623045721,-680.2,0.00021095,2]
[375310286,1753623045731,-515.26,0.00021095,2]
[375310289,1753623045740,-702.74,0.00021095,2]
[375310291,1753623045750,-756.66,0.00021095,2]
[375310293,1753623045759,-460.0,0.00021095,2]
[375310295,1753623045769,-698.98,0.00021095,2]
[375310297,1753623045778,-460.0,0.00021095,2]
[375310300,1753623045788,-460.0,0.00021095,2]
[375310302,1753623045797,-460.0,0.00021095,2]
[375310305,1753623045807,-835.27,0.00021095,2]
[375310307,1753623045817,-512.65,0.00021095,2]
[375310309,1753623045827,-460.0,0.00021095,2]
[375310311,1753623045836,-460.0,0.00021095,2]
[375310314,1753623045847,-460.0,0.00021095,2]
[375310316,1753623045857,-757.32,0.00021095,2]
[375310318,1753623045866,-185.43,0.00021095,2]
[375310320,1753623045876,-1484.05,0.00021095,2]